bitfinex-derivatives/quotes_SOLF0:USTF0_20250323
["timestamp","ask_amount","ask_price","bid_price","bid_amount"]
[1742704805239,295.34144797,130.23,130.2,7.6817]
[1742704805740,14.82144797,130.23,130.2,7.6817]
[1742704807737,7.14114797,130.23,130.2,7.6817]
[1742704808635,7.14114797,130.23,130.21,7.6812]
[1742704809036,7.14114797,130.23,130.21,7.7357212]
[1742704812042,7.14114797,130.23,130.21,0.0545212]
[1742704815146,14.82134797,130.23,130.21,0.0545212]
[1742704817349,7.6806,130.22,130.21,0.0545212]
[1742704820153,14.82174797,130.22,130.21,0.0545212]
[1742704828561,7.6806,130.22,130.21,0.0545212]
[1742704872592,14.82174797,130.22,130.21,0.0545212]
[1742704873096,49.52993417,130.26,130.21,26.9545212]
[1742704873296,49.52993417,130.26,130.21,34.09566917]
[1742704873595,7.14114797,130.25,130.21,34.09566917]
[1742704873987,14.82044797,130.25,130.21,41.77666917]
[1742704874596,7.14114797,130.24,130.21,34.6355212]
[1742704875005,14.82074797,130.24,130.21,34.6355212]
[1742704876700,253.48,130.28,130.21,34.09566917]
[1742704876902,7.14114797,130.26,130.21,34.09566917]
[1742704877293,14.81974797,130.26,130.22,14.82124797]
[1742704877890,14.81974797,130.26,130.23,7.68]
[1742704879500,14.81974797,130.26,130.22,14.82164797]
[1742704881498,7.14114797,130.26,130.22,14.82164797]
[1742704881702,7.14114797,130.26,130.22,16.86684797]
[1742704882198,14.81954797,130.26,130.22,16.86684797]
[1742704882499,7.14114797,130.26,130.22,16.86684797]
[1742704883391,7.6793,130.25,130.22,2.0452]
[1742704884805,7.6793,130.25,130.22,9.7257]
[1742704885004,14.81964797,130.26,130.22,9.7257]
[1742704885206,7.14114797,130.28,130.23,7.14114797]
[1742704885400,7.6781,130.27,130.24,34.5794]
[1742704885705,7.14114797,130.28,130.24,26.95498602]
[1742704886306,7.6783,130.26,130.24,26.95498602]
[1742704892707,7.6789,130.25,130.24,26.95498602]
[1742704898114,7.6786,130.26,130.24,26.95498602]
[1742704901715,14.82004797,130.25,130.24,0.05498602]
[1742704903716,7.6818,130.21,130.18,36.11714797]
[1742704903916,2.07,130.29,130.18,36.11714797]
[1742704903917,7.14114797,130.22,130.18,2.076]
[1742704904116,7.14114797,130.2,130.17,2.0806]
[1742704904717,7.683,130.19,130.17,2.13549631]
[1742704905420,7.683,130.18,130.17,2.13549631]
[1742704905622,7.683,130.18,130.17,0.05489631]
[1742704906510,14.82374797,130.19,130.17,0.05489631]
[1742704906719,7.6826,130.19,130.17,0.05489631]
[1742704907519,14.82414797,130.18,130.17,0.05489631]
[1742704911014,7.14114797,130.18,130.17,0.05489631]
[1742704912518,14.82414797,130.18,130.17,0.05489631]
[1742704918526,7.6854,130.14,130.1,38.12374797]
[1742704918726,14.82654797,130.14,130.1,38.12374797]
[1742704918929,7.6854,130.14,130.1,38.12374797]
[1742704919129,14.82614797,130.15,130.11,7.14114797]
[1742704919633,0.05472088,130.14,130.12,0.04966174]
[1742704920929,7.14114797,130.17,130.12,7.19080971]
[1742704921135,7.14114797,130.18,130.13,34.04114797]
[1742704921536,280.4,130.19,130.14,7.14114797]
[1742704921735,287.54114797,130.19,130.14,7.14114797]
[1742704922138,7.73572606,130.18,130.15,0.05090322]
[1742704922335,14.87687403,130.18,130.15,0.05090322]
[1742704923544,7.6837,130.17,130.15,0.05090322]
[1742704924248,14.82484797,130.17,130.15,0.05090322]
[1742704924546,7.6842,130.16,130.15,0.05090322]
[1742704925844,14.82484797,130.17,130.15,0.05090322]
[1742704927244,7.14114797,130.16,130.15,0.05090322]
[1742704930947,14.82484797,130.17,130.15,0.05090322]
[1742704931941,14.82534797,130.16,130.15,0.05090322]
[1742704932145,41.74534797,130.16,130.15,0.05090322]
[1742704940852,41.74114797,130.16,130.08,0.80444408]
[1742704941053,7.14114797,130.11,130.08,0.80444408]
[1742704941247,14.82814797,130.12,130.08,0.80444408]
[1742704941449,14.82814797,130.12,130.08,8.49304408]
[1742704941851,14.88064175,130.11,130.09,0.05266691]
[1742704942051,7.19334175,130.11,130.09,0.05266691]
[1742704942356,7.14114797,130.1,130.09,0.05266691]
[1742704942548,14.82884797,130.1,130.09,0.05266691]
[1742704944148,7.73959378,130.11,130.09,0.05266691]
[1742704944354,0.05219378,130.11,130.09,0.05266691]
[1742704944556,7.19334175,130.11,130.09,0.05266691]
[1742704945356,7.14114797,130.1,130.09,0.05266691]
[1742704946555,14.82884797,130.1,130.09,0.05266691]
[1742704947056,41.74884797,130.1,130.09,0.05266691]
[1742704947651,34.06114797,130.1,130.09,0.05266691]
[1742704949255,41.74884797,130.1,130.09,0.05266691]
[1742704952558,7.14114797,130.09,130.0,7.14114797]
[1742704952753,7.14114797,130.07,130.02,7.14114797]
[1742704952960,7.14114797,130.08,130.04,7.14114797]
[1742704953154,7.14114797,130.08,130.05,26.92]
[1742704953555,7.1985434,130.08,130.05,26.9756768]
[1742704955964,7.1985434,130.08,130.05,34.6662768]
[1742704957156,7.1985434,130.08,130.05,26.9756768]
[1742704957762,7.1985434,130.08,130.05,34.6662768]
[1742704958164,14.8874434,130.08,130.05,26.9756768]
[1742704958361,7.1985434,130.08,130.05,26.9756768]
[1742704959062,7.1985434,130.08,130.05,34.6662768]
[1742704960272,7.1985434,130.08,130.06,7.6901]
[1742704965973,0.05739543,130.08,130.07,7.6895]
[1742704968267,0.05739543,130.08,130.06,7.6899]
[1742704970179,0.05739543,130.08,130.05,34.6660768]
[1742704973271,7.1985434,130.08,130.05,7.7460768]
[1742704973475,7.1985434,130.08,130.05,34.6660768]
[1742704980079,14.8876434,130.08,130.05,34.6660768]
[1742704980279,0.05739543,130.08,130.05,26.9756768]
[1742704980484,7.14114797,130.1,130.05,34.11682477]
[1742704981588,0.05809804,130.09,130.07,7.6891]
[1742704983081,42.3887862,130.14,130.08,34.06114797]
[1742704983286,42.3887862,130.14,130.1,7.14114797]
[1742704983491,42.3887862,130.14,130.11,34.06114797]
[1742704983785,42.3887862,130.14,130.12,7.6865]
[1742704984177,42.44115333,130.14,130.12,0.05705169]
[1742704984488,39.21145333,130.14,130.13,7.686]
[1742704984687,0.05236713,130.14,130.13,7.686]
[1742704986083,0.05236713,130.14,130.13,14.82714797]
[1742704986291,7.36749655,130.15,130.14,7.6854]
[1742704986491,7.36749655,130.15,130.14,41.74654797]
[1742704987789,268.52424797,130.18,130.14,41.74654797]
[1742704988196,268.52424797,130.18,130.15,0.04859063]
[1742704990100,7.6837,130.17,130.15,0.04859063]
[1742704993395,7.14114797,130.18,130.15,7.73319063]
[1742704993396,7.6832,130.18,130.15,7.73319063]
[1742704994195,7.6836,130.17,130.15,0.04859063]
[1742704995395,7.6833,130.18,130.15,7.73329063]
[1742704995997,7.6837,130.17,130.15,0.04859063]
[1742704996196,7.14114797,130.19,130.15,0.04859063]
[1742704996402,7.6821,130.2,130.16,7.14114797]
[1742704996602,7.6821,130.2,130.17,34.06114797]
[1742704996794,7.14114797,130.21,130.17,34.06114797]
[1742704997200,7.14114797,130.21,130.18,0.0514707]
[1742704997802,14.82254797,130.21,130.18,0.0514707]
[1742704997995,7.14114797,130.22,130.18,0.0514707]
[1742704998492,14.82214797,130.22,130.18,7.7341707]
[1742704999303,7.14114797,130.22,130.18,7.19261867]
[1742704999502,268.42134797,130.23,130.18,7.19261867]
[1742704999697,261.2802,130.23,130.19,7.14114797]
[1742704999904,14.82084797,130.24,130.2,34.6015]
[1742705000109,14.82084797,130.24,130.2,26.92]
[1742705000405,14.82084797,130.24,130.21,0.05178389]
[1742705004411,7.14114797,130.24,130.21,0.05178389]
[1742705005108,7.6805,130.23,130.21,0.05178389]
[1742705005911,7.14114797,130.24,130.21,0.05178389]
[1742705007599,7.6806,130.22,130.21,0.05178389]
[1742705007800,14.82174797,130.22,130.21,0.05178389]
[1742705012617,7.6806,130.22,130.21,0.05178389]
[1742705021313,7.6803,130.23,130.21,0.05178389]
[1742705023821,7.6806,130.22,130.21,0.05178389]
[1742705024022,7.14114797,130.24,130.21,0.05178389]
[1742705024719,7.6803,130.23,130.21,0.05178389]
[1742705032332,14.82074797,130.24,130.21,7.73278389]
[1742705033330,7.6801,130.23,130.21,7.73278389]
[1742705034027,7.14114797,130.24,130.21,7.73278389]
[1742705034238,14.82094797,130.24,130.21,7.73278389]
[1742705042636,7.14114797,130.22,130.21,0.05178389]
[1742705043041,7.14114797,130.2,130.17,26.9]
[1742705043240,14.82324797,130.2,130.17,34.5835]
[1742705044038,14.87560445,130.2,130.17,34.64018381]
[1742705045042,0.05235648,130.2,130.19,14.82354797]
[1742705046040,0.05235648,130.2,130.18,7.6827]
[1742705046644,0.05235648,130.2,130.17,41.78123178]
[1742705047143,0.05235648,130.2,130.17,26.95668381]
[1742705047337,7.19350445,130.2,130.17,26.95668381]
[1742705047542,7.14114797,130.19,130.17,26.95668381]
[1742705047746,14.82384797,130.19,130.17,26.95668381]
[1742705048450,14.87560445,130.2,130.17,26.95668381]
[1742705048845,14.87560445,130.2,130.17,34.64028381]
[1742705049449,7.73445648,130.2,130.17,34.64028381]
[1742705049648,7.73445648,130.2,130.17,41.78143178]
[1742705050353,7.73445648,130.2,130.17,26.95668381]
[1742705054655,7.6826,130.19,130.17,26.95668381]
[1742705058958,310.58114797,130.18,130.07,42.1967841]
[1742705059159,7.14114797,130.09,130.07,42.1967841]
[1742705059354,7.14114797,130.09,130.02,317.36836435]
[1742705059355,28.12,130.08,130.02,317.36836435]
[1742705059553,14.83064797,130.07,130.02,317.36836435]
[1742705060063,14.83064797,130.07,130.05,125.8064299]
[1742705063767,7.6901,130.06,130.05,0.05659058]
[1742705065662,35.31883417,130.08,130.05,0.05659058]
[1742705065863,7.19883417,130.08,130.05,0.05659058]
[1742705067171,7.6898,130.07,130.05,0.05659058]
[1742705067468,0.0576862,130.08,130.05,0.05659058]
[1742705067871,7.7470862,130.08,130.05,0.05659058]
[1742705069068,7.7470862,130.08,130.06,35.18114797]
[1742705069370,0.0576862,130.08,130.07,7.14114797]
[1742705070371,14.82734797,130.13,130.07,7.14114797]
[1742705070567,14.82734797,130.13,130.08,7.14114797]
[1742705070767,14.82734797,130.13,130.09,28.06]
[1742705071370,14.82784797,130.12,130.09,28.06]
[1742705071565,14.87920206,130.12,130.1,0.05337367]
[1742705072469,7.19250206,130.12,130.1,0.05337367]
[1742705078871,14.87910206,130.12,130.1,0.05337367]
[1742705079075,7.14114797,130.11,130.1,0.05337367]
[1742705082478,0.05135409,130.12,130.1,0.05337367]
[1742705082879,7.19250206,130.12,130.1,0.05337367]
[1742705083079,7.19250206,130.12,130.1,7.74107367]
[1742705084485,7.19250206,130.12,130.1,0.05337367]
[1742705084681,7.14114797,130.11,130.1,0.05337367]
[1742705085082,14.82824797,130.11,130.1,0.05337367]
[1742705086181,7.6885,130.09,130.06,27.88]
[1742705086381,7.14114797,130.08,130.05,7.6906]
[1742705086584,7.14114797,130.07,130.05,35.5706]
[1742705086778,7.14114797,130.08,130.05,35.5706]
[1742705087381,7.19333754,130.08,130.05,35.61998824]
[1742705087581,0.05218957,130.08,130.05,35.61998824]
[1742705088286,7.74118957,130.08,130.05,35.61998824]
[1742705088489,0.05218957,130.08,130.06,7.6901]
[1742705089185,0.05218957,130.08,130.05,35.07053621]
[1742705089688,0.05218957,130.08,130.07,7.6895]
[1742705089891,0.05218957,130.08,130.07,14.83064797]
[1742705091590,0.05218957,130.08,130.07,7.6895]
[1742705103292,0.05218957,130.08,130.07,35.3895]
[1742705104902,0.05218957,130.08,130.07,27.7]
[1742705105899,0.05218957,130.08,130.05,7.73978824]
[1742705106100,7.19333754,130.08,130.05,35.41978824]
[1742705106293,14.88233754,130.08,130.05,35.39978824]
[1742705106999,14.88233754,130.08,130.05,27.70938824]
[1742705107193,7.19333754,130.08,130.05,27.70938824]
[1742705108296,0.05218957,130.08,130.05,34.85053621]
[1742705108898,0.05218957,130.08,130.07,7.6895]
[1742705111303,0.05218957,130.08,130.07,14.83064797]
[1742705114202,7.14114797,130.16,130.07,7.14114797]
[1742705114409,7.14114797,130.16,130.11,7.14114797]
[1742705114604,7.14114797,130.16,130.12,34.76114797]
[1742705114905,7.14114797,130.16,130.12,27.62]
[1742705115304,0.04918789,130.15,130.13,0.05003368]
[1742705115606,7.19033586,130.15,130.13,7.73593368]
[1742705116403,7.19033586,130.15,130.13,0.05003368]
[1742705118001,0.04918789,130.15,130.13,0.05003368]
[1742705118407,7.19033586,130.15,130.13,0.05003368]
[1742705118810,14.87553586,130.15,130.13,0.05003368]
[1742705119707,7.73438789,130.15,130.13,0.05003368]
[1742705120108,7.6854,130.14,130.13,0.05003368]
[1742705120915,7.6874,130.11,130.08,2.1336]
[1742705121215,14.82854797,130.11,130.07,27.58]
[1742705121511,14.82854797,130.11,130.07,35.2692]
[1742705121906,7.6878,130.1,130.07,35.2692]
[1742705122208,7.7438039,130.1,130.08,0.0494746]
[1742705124015,0.0560039,130.1,130.08,0.0494746]
[1742705124216,0.0560039,130.1,130.08,7.7381746]
[1742705125521,0.0560039,130.1,130.09,7.6883]
[1742705126209,0.0560039,130.1,130.09,14.82944797]
[1742705126414,34.72114797,130.15,130.1,7.6873]
[1742705126620,7.14114797,130.15,130.1,42.36844797]
[1742705126917,7.6857,130.14,130.11,7.687]
[1742705127513,7.73226797,130.14,130.11,7.73743341]
[1742705127715,7.73226797,130.14,130.11,14.87858138]
[1742705129820,7.73226797,130.14,130.11,7.73743341]
[1742705131523,0.04656797,130.14,130.11,0.05043341]
[1742705131728,0.04656797,130.14,130.12,7.14114797]
[1742705131932,0.04656797,130.14,130.13,27.5]
[1742705135029,0.04656797,130.14,130.13,35.186]
[1742705138237,0.04656797,130.14,130.13,27.5]
[1742705140835,0.04656797,130.14,130.13,35.186]
[1742705147743,0.04656797,130.14,130.13,27.5]
[1742705155847,7.73196797,130.14,130.13,27.5]
[1742705157553,7.18771594,130.14,130.11,27.33043341]
[1742705157752,7.14114797,130.13,130.11,0.05043341]
[1742705158157,14.82764797,130.12,130.11,0.05043341]
[1742705166357,14.82744797,130.13,130.11,0.05043341]
[1742705166552,7.6863,130.13,130.11,0.05043341]
[1742705167262,7.73216797,130.14,130.11,0.05043341]
[1742705167559,7.73216797,130.14,130.11,7.19158138]
[1742705167764,7.73216797,130.14,130.11,14.87838138]
[1742705168159,0.04656797,130.14,130.11,7.19158138]
[1742705169160,0.04656797,130.14,130.12,7.6861]
[1742705169461,0.04656797,130.14,130.12,34.38114797]
[1742705169654,0.04656797,130.14,130.12,42.06734797]
[1742705170454,0.04656797,130.14,130.13,7.686]
[1742705171261,0.04656797,130.14,130.13,14.82714797]
[1742705172264,0.04656797,130.14,130.13,7.686]
[1742705177580,0.04656797,130.14,130.12,42.06744797]
[1742705183780,7.686,130.13,130.12,27.24]
[1742705183973,7.14114797,130.13,130.11,0.05043341]
[1742705184180,7.14114797,130.12,130.11,0.05043341]
[1742705184883,14.82764797,130.12,130.11,0.05043341]
[1742705190584,7.6865,130.12,130.11,0.05043341]
[1742705208000,14.82744797,130.13,130.11,0.05043341]
[1742705208398,0.04656797,130.14,130.11,0.05043341]
[1742705208597,0.04656797,130.14,130.12,7.6862]
[1742705213313,0.04656797,130.14,130.13,7.686]
[1742705218310,0.04656797,130.14,130.11,34.23158138]
[1742705219006,7.73206797,130.14,130.11,41.91838138]
[1742705220213,7.73206797,130.14,130.12,7.6865]
[1742705221811,0.04656797,130.14,130.12,7.6865]
[1742705225812,7.14114797,130.13,130.11,0.05043341]
[1742705226007,7.14114797,130.12,130.11,0.05043341]
[1742705226818,14.82764797,130.12,130.11,0.05043341]
[1742705227712,7.14114797,130.12,130.06,29.0889]
[1742705228014,27.00656797,130.14,130.06,29.0889]
[1742705228015,7.14114797,130.09,130.06,29.0889]
[1742705228211,14.82974797,130.09,130.06,29.0889]
[1742705228715,7.19426879,130.09,130.06,29.14670964]
[1742705229217,7.19426879,130.09,130.06,36.83630964]
[1742705229614,7.19426879,130.09,130.06,29.14670964]
[1742705229817,14.88266879,130.09,130.06,29.14670964]
[1742705230516,14.88266879,130.09,130.06,36.83670964]
[1742705231015,14.88266879,130.09,130.06,36.81670964]
[1742705231319,14.88266879,130.09,130.06,29.12670964]
[1742705232920,14.88266879,130.09,130.06,36.81680964]
[1742705233522,14.83004797,130.08,130.06,0.05780964]
[1742705234919,7.6895,130.07,130.06,0.05780964]
[1742705235620,14.83064797,130.07,130.06,0.05780964]
[1742705235818,14.83064797,130.07,130.06,0.00562007]
[1742705236023,14.83064797,130.07,130.0,34.7133]
[1742705236024,7.692,130.03,130.0,34.7133]
[1742705236219,7.692,130.03,130.0,27.02]
[1742705237026,7.14114797,130.04,130.0,27.02]
[1742705237229,0.05176078,130.03,130.0,34.76770015]
[1742705238121,0.05176078,130.03,130.02,7.14114797]
[1742705238718,0.05176078,130.03,130.02,14.83364797]
[1742705245430,0.05176078,130.03,130.02,7.6925]
[1742705253337,0.05176078,130.03,130.01,7.6928]
[1742705257235,0.05176078,130.03,130.0,0.05440015]
[1742705257539,7.74386078,130.03,130.0,34.72780015]
[1742705258137,7.6931,130.01,130.0,0.05440015]
[1742705258343,14.83424797,130.01,130.0,0.05440015]
[1742705258836,7.14114797,130.01,129.94,7.14114797]
[1742705259042,7.14114797,129.99,129.94,7.14114797]
[1742705259243,14.83584797,129.99,129.94,7.14114797]
[1742705259839,0.0586701,129.98,129.95,7.19929851]
[1742705261738,0.0586701,129.98,129.95,14.89579851]
[1742705262346,0.0586701,129.98,129.96,34.896]
[1742705262544,0.0586701,129.98,129.96,42.03714797]
[1742705262743,0.0586701,129.98,129.97,7.14114797]
[1742705263548,0.0586701,129.98,129.97,14.83654797]
[1742705264941,0.0586701,129.98,129.97,16.80514797]
[1742705269548,34.32114797,130.04,130.01,7.693]
[1742705270049,7.14114797,130.04,130.01,7.693]
[1742705270849,7.19179125,130.04,130.01,7.74654643]
[1742705271044,7.19179125,130.04,130.02,7.692]
[1742705271257,0.05064328,130.04,130.02,7.692]
[1742705273054,0.05064328,130.04,130.01,7.74634643]
[1742705273652,7.19179125,130.04,130.01,7.74634643]
[1742705275350,14.88309125,130.04,130.01,7.74634643]
[1742705277154,7.14114797,130.02,130.01,0.05354643]
[1742705278456,14.83364797,130.02,130.01,0.05354643]
[1742705282056,7.6937,130.0,129.94,7.14114797]
[1742705282260,7.14114797,129.96,129.93,4.0315]
[1742705282458,7.14114797,129.97,129.93,11.17264797]
[1742705282654,7.14114797,130.0,129.95,7.14114797]
[1742705282853,7.14114797,130.0,129.96,27.18]
[1742705283156,7.14114797,130.0,129.97,7.6953]
[1742705283357,0.05339945,129.99,129.97,7.74431287]
[1742705285261,0.05339945,129.99,129.98,7.6948]
[1742705286366,0.05339945,129.99,129.97,7.74411287]
[1742705287570,0.05339945,129.99,129.98,7.6948]
[1742705287770,0.05339945,129.99,129.97,0.04901287]
[1742705288269,0.05339945,129.99,129.97,7.74391287]
[1742705288467,0.05339945,129.99,129.97,0.04901287]
[1742705288667,0.05339945,129.99,129.97,9.13366084]
[1742705288969,0.05339945,129.99,129.98,7.6948]
[1742705289169,0.05339945,129.99,129.98,14.83594797]
[1742705289869,0.05339945,129.99,129.98,7.6948]
[1742705297173,0.05339945,129.99,129.98,14.83594797]
[1742705297472,203.0,129.98,129.91,1.33874473]
[1742705297668,7.14114797,129.92,129.89,42.57068957]
[1742705297868,7.14114797,129.9,129.89,42.57068957]
[1742705298164,27.82,129.93,129.89,42.57068957]
[1742705298165,7.14114797,129.91,129.89,42.57068957]
[1742705298774,7.6996,129.9,129.89,42.62797634]
[1742705298973,12.19131085,129.9,129.89,42.62797634]
[1742705299168,4.49171085,129.9,129.89,42.62797634]
[1742705300674,14.88925183,129.91,129.89,42.62797634]
[1742705300873,4.47984401,129.9,129.89,42.62797634]
[1742705301074,4.47984401,129.9,129.89,31.94068934]
[1742705301275,4.47993949,129.9,129.89,0.05728677]
[1742705302865,11.62108746,129.9,129.89,0.05728677]
[1742705304077,19.32068746,129.9,129.89,0.05728677]
[1742705304771,19.30439447,129.9,129.89,0.05728677]
[1742705304973,11.60479447,129.9,129.89,0.05728677]
[1742705306675,19.30439447,129.9,129.89,0.05728677]
[1742705308672,19.29575288,129.9,129.89,0.05728677]
[1742705309779,39.41615288,129.9,129.81,2.1265]
[1742705309982,7.14114797,129.87,129.82,11.17514797]
[1742705310180,7.14114797,129.87,129.82,18.87914797]
[1742705310377,7.14114797,129.87,129.83,27.86]
[1742705310778,0.05276826,129.86,129.84,0.05656949]
[1742705312286,0.05276826,129.86,129.84,7.75946949]
[1742705313184,0.05276826,129.86,129.85,7.7025]
[1742705329793,0.05276826,129.86,129.85,14.84364797]
[1742705329993,7.14114797,129.91,129.89,7.7]
[1742705330194,4.45487394,129.9,129.89,7.7]
[1742705330396,11.59602191,129.9,129.89,7.7]
[1742705330799,7.14114797,129.9,129.89,7.7]
[1742705331098,11.59708923,129.9,129.89,7.7]
[1742705332201,11.59708923,129.9,129.88,35.43146261]
[1742705332498,7.14114797,129.9,129.88,35.43146261]
[1742705335801,7.14114797,129.9,129.89,7.7002]
[1742705336001,11.60814465,129.9,129.89,7.7002]
[1742705337202,4.46699668,129.9,129.89,7.7002]
[1742705338906,7.19736624,129.91,129.9,7.6996]
[1742705339106,11.67580925,129.91,129.9,7.6996]
[1742705339403,11.67582339,129.91,129.9,7.6996]
[1742705341807,4.53467542,129.91,129.9,7.6996]
[1742705342208,4.54987818,129.91,129.9,7.6996]
[1742705344211,4.56098967,129.91,129.9,7.6996]
[1742705344711,4.56111296,129.91,129.9,7.6996]
[1742705346310,4.5607944,129.91,129.9,7.6996]
[1742705350306,4.56047278,129.91,129.9,7.6996]
[1742705352214,4.55969134,129.91,129.9,7.6996]
[1742705352816,4.55958335,129.91,129.9,7.6996]
[1742705354215,4.5590411,129.91,129.9,7.6996]
[1742705356216,4.55892709,129.91,129.9,7.6996]
[1742705358217,4.55921556,129.91,129.9,7.6996]
[1742705360112,4.55921556,129.91,129.9,35.0996]
[1742705360719,4.55644359,129.91,129.9,35.0996]
[1742705361416,11.69759156,129.91,129.9,27.4]
[1742705362114,11.69759156,129.91,129.9,35.0996]
[1742705362314,11.69777942,129.91,129.9,35.0996]
[1742705363523,11.69777942,129.91,129.9,7.6996]
[1742705366231,11.69909179,129.91,129.9,7.6996]
[1742705368636,11.7001077,129.91,129.9,7.6996]
[1742705369731,4.55895973,129.91,129.9,7.6996]
[1742705370134,0.05621827,129.91,129.9,7.6996]
[1742705370334,4.55960447,129.91,129.9,7.6996]
[1742705371032,4.55960447,129.91,129.89,7.6999]
[1742705371334,4.5033862,129.9,129.89,7.6999]
[1742705371527,4.5033862,129.9,129.88,35.17126261]
[1742705371729,4.5033862,129.89,129.88,35.17126261]
[1742705372136,4.5033862,129.89,129.88,7.75126261]
[1742705380144,7.14114797,129.9,129.89,7.7002]
[1742705380337,11.64389753,129.9,129.89,7.7002]
[1742705382345,11.64389753,129.9,129.88,7.75146261]
[1742705382543,11.64389753,129.89,129.88,0.05096261]
[1742705382747,11.64213977,129.89,129.88,0.05096261]
[1742705382942,19.34233977,129.89,129.88,0.05096261]
[1742705384142,14.84134797,129.89,129.88,0.05096261]
[1742705384345,19.34127747,129.89,129.88,0.05096261]
[1742705386341,7.7015,129.87,129.83,27.28]
[1742705386643,11.64107747,129.86,129.83,27.28]
[1742705386848,4.4999295,129.85,129.84,7.7027]
[1742705390350,7.19298617,129.86,129.84,7.7027]
[1742705390551,4.49460829,129.85,129.84,7.7027]
[1742705390757,4.49461675,129.85,129.84,7.7027]
[1742705393051,0.0518382,129.86,129.85,7.7025]
[1742705393252,0.0518382,129.86,129.85,34.9425]
[1742705393449,0.0518382,129.86,129.85,7.7025]
[1742705393752,0.0518382,129.86,129.85,34.9425]
[1742705397751,0.0518382,129.86,129.85,42.08364797]
[1742705398348,0.0518382,129.86,129.85,46.20314797]
[1742705405258,4.50308774,129.86,129.85,46.20314797]
[1742705409760,4.50415755,129.86,129.85,46.20314797]
[1742705412468,4.50415755,129.86,129.85,34.9425]
[1742705415670,0.0518382,129.86,129.85,34.9425]
[1742705415869,4.50199736,129.86,129.85,34.9425]
[1742705417872,4.50007802,129.86,129.85,34.9425]
[1742705418076,4.50007802,129.86,129.85,42.08364797]
[1742705421775,0.0518382,129.86,129.85,42.08364797]
[1742705421971,4.50155794,129.86,129.85,42.08364797]
[1742705422273,4.50154003,129.86,129.85,42.08364797]
[1742705423875,4.50205292,129.86,129.85,42.08364797]
[1742705427868,4.50315617,129.86,129.85,42.08364797]
[1742705428277,0.0518382,129.86,129.85,42.08364797]
[1742705428474,4.50343528,129.86,129.85,42.08364797]
[1742705433983,4.50430325,129.86,129.85,42.08364797]
[1742705436384,4.50702391,129.86,129.85,42.08364797]
[1742705437983,4.50838611,129.86,129.85,42.08364797]
[1742705438386,42.73884797,129.93,129.89,7.6996]
[1742705438881,7.14114797,129.92,129.89,7.6996]
[1742705439077,14.83954797,129.92,129.89,7.6996]
[1742705439484,14.89630044,129.92,129.89,7.75038396]
[1742705442086,7.19790044,129.92,129.9,7.6994]
[1742705442289,7.14114797,129.91,129.9,7.6994]
[1742705450295,11.54789281,129.91,129.9,7.6994]
[1742705450496,11.54789281,129.91,129.89,7.75068396]
[1742705450697,11.54786195,129.9,129.89,0.05078396]
[1742705450890,11.54786195,129.9,129.89,7.75098396]
[1742705456297,7.14114797,129.9,129.89,7.75098396]
[1742705456495,11.54761426,129.9,129.89,7.75098396]
[1742705457994,7.14114797,129.9,129.89,7.75098396]
[1742705458201,11.54729029,129.9,129.89,7.75098396]
[1742705458498,11.54778574,129.9,129.89,7.75098396]
[1742705460102,11.54823133,129.9,129.89,7.75098396]
[1742705461399,7.14114797,129.9,129.89,7.75098396]
[1742705461594,11.54952101,129.9,129.89,7.75098396]
[1742705463499,11.55100773,129.9,129.89,7.75098396]
[1742705463699,11.55100773,129.9,129.89,0.05078396]
[1742705463900,11.54961744,129.9,129.89,0.05078396]
[1742705464499,19.24921744,129.9,129.89,0.05078396]
[1742705464701,19.24921744,129.9,129.89,0.00598482]
[1742705469413,19.24407658,129.9,129.89,0.00598482]
[1742705471411,19.2433079,129.9,129.89,0.00598482]
[1742705472110,19.24393972,129.9,129.89,0.00598482]
[1742705475611,19.24583826,129.9,129.89,0.00598482]
[1742705476112,11.54623826,129.9,129.89,0.00598482]
[1742705476904,19.24583826,129.9,129.89,0.00598482]
[1742705477412,14.84074797,129.9,129.89,0.00598482]
[1742705477612,19.24716064,129.9,129.89,0.00598482]
[1742705478013,19.24714844,129.9,129.89,0.00598482]
[1742705479510,19.24701738,129.9,129.89,0.00598482]
[1742705481518,19.24749545,129.9,129.89,0.00598482]
[1742705483517,19.24736848,129.9,129.89,0.00598482]
[1742705485412,11.54776848,129.9,129.89,0.00598482]
[1742705485617,11.54822853,129.9,129.89,0.00598482]
[1742705491621,19.24782853,129.9,129.89,0.00598482]
[1742705492022,19.25051812,129.9,129.89,0.00598482]
[1742705494922,11.55091812,129.9,129.89,0.00598482]
[1742705497721,11.55349155,129.9,129.89,0.00598482]
[1742705500026,7.14114797,129.9,129.89,0.00598482]
[1742705500324,11.5539901,129.9,129.89,0.00598482]
[1742705501624,7.14114797,129.9,129.89,0.00598482]
[1742705501826,11.55419468,129.9,129.89,0.00598482]
[1742705503623,11.55443103,129.9,129.89,0.00598482]